fUSD/lending_fUSD_20240815
["ID","MTS","AMOUNT","RATE_DAILY","PERIOD"]
[335025948,1723761040443,-703.90320097,0.000109,2]
[335025949,1723761040458,-31599.03004456,0.000109,2]
[335025950,1723761040467,-606.2932,0.000109,2]
[335025951,1723761040479,-107685.27977646,0.000109,2]
[335025952,1723761040491,-385.66261705,0.000109,2]
[335025953,1723761040502,-656.14,0.000109,2]
[335025954,1723761040588,-539.06283141,0.000109,2]
[335025955,1723761040599,-4086.26614854,0.000109,2]
[335025956,1723761040610,-39212.85223734,0.000109,2]
[335025957,1723761040621,-1503.43194057,0.000109,2]
[335025958,1723761040633,-3118.19999998,0.000109,2]
[335025959,1723761040644,-606.43908688,0.000109,2]
[335025960,1723761040656,-38408.74746177,0.000109,2]
[335025961,1723761040665,-1000.0,0.000109,2]
[335025962,1723761040674,-500.0,0.000109,2]
[335025963,1723761040683,-25221.0475,0.000109,2]
[335025964,1723761040693,-1000.0,0.000109,2]
[335025965,1723761040702,-4534.84459588,0.000109,2]
[335025966,1723761040712,-177.51763708,0.000109,2]
[335025967,1723761040721,-23942.49187281,0.000109,2]
[335025968,1723761040735,-200.0,0.000109,3]
[335025969,1723761040744,-185.98085818,0.000109,2]
[335025970,1723761040753,-170.79932157,0.000109,2]
[335025971,1723761040761,-366.17430398,0.000109,2]
[335025972,1723761040770,-218.2970397,0.000109,2]
[335025973,1723761040779,-286.94285339,0.000109,2]
[335025974,1723761040788,-1251.0578164,0.000109,2]
[335025975,1723761040797,-179.37698944,0.000109,2]
[335025976,1723761040806,-6062.5048155,0.000109,2]
[335025977,1723761040816,-353.77465098,0.000109,2]
[335025978,1723761040824,-174.90327436,0.000109,2]
[335025979,1723761040833,-622.0,0.00010902,2]
[335025980,1723761040843,-289.0,0.00010902,2]
[335025981,1723761040852,-5135.0,0.00010902,2]
[335025982,1723761040861,-840.0,0.00010906,2]
[335025983,1723761040870,-150.0,0.00010925,2]
[335025984,1723761040879,-150.0,0.0001094,2]
[335025985,1723761040892,-2841.12816254,0.00010949,2]
[335025986,1723761040901,-500.0,0.00010958,2]
[335025987,1723761040910,-500.0,0.00010958,2]
[335025988,1723761040920,-500.0,0.00010958,2]
[335025989,1723761040930,-500.0,0.00010958,2]
[335025990,1723761040939,-425.65200183,0.00010958,2]
[335025991,1723761040949,-500.0,0.00010958,2]
[335025992,1723761040957,-500.0,0.00010958,2]
[335025993,1723761040965,-500.0,0.00010958,2]
[335025994,1723761040979,-334.24242077,0.00010958,2]
[335025995,1723761040988,-150.0,0.00010959,2]
[335025996,1723761040997,-250.0,0.00010959,2]
[335025997,1723761041006,-764.41,0.00010959,2]
[335025998,1723761041015,-2000.0,0.00010959,2]
[335025999,1723761041024,-637.0,0.00010959,2]
[335026000,1723761041033,-530.84,0.00010959,2]
[335026001,1723761041042,-442.36,0.00010959,2]
[335026002,1723761041051,-368.64,0.00010959,2]
[335026003,1723761041060,-307.2,0.00010959,2]
[335026004,1723761041069,-256.0,0.00010959,2]
[335026005,1723761041078,-213.33,0.00010959,2]
[335026006,1723761041087,-177.78,0.00010959,2]
[335026007,1723761041096,-888.9,0.00010959,2]
[335026008,1723761041106,-840.85981544,0.0001097,2]
[335026009,1723761041115,-200.0,0.00010973,2]
[335026010,1723761041124,-197.1386879,0.00010979,2]
[335026011,1723761041133,-40974.96522058,0.0001098,2]
[335026012,1723761041142,-274.4076759,0.00010986,2]
[335026013,1723761041151,-255.25996316,0.00010987,2]
[335026014,1723761041161,-132682.15413263,0.0001099,3]
[335026015,1723761041170,-840.85981544,0.0001099,2]
[335026016,1723761041179,-840.85981544,0.0001099,2]
[335026017,1723761041188,-150.0,0.00010995,2]
[335026018,1723761041197,-2042.07970528,0.00010997,2]
[335026019,1723761041206,-150.0,0.00010998,2]
[335026020,1723761041216,-46195.0913668,0.00010998,2]
[335026021,1723761041228,-3222.0640688,0.00010998,2]
[335026022,1723761041237,-150.0,0.00010999,2]
[335026023,1723761041247,-551.0,0.00010999,2]
[335026024,1723761041256,-1895.0,0.00010999,2]
[335026025,1723761041265,-1175.0,0.00010999,2]
[335026026,1723761041274,-247.0,0.00010999,2]
[335026027,1723761041284,-3292.0,0.00010999,2]
[335026028,1723761041294,-764.0,0.00010999,2]
[335026029,1723761041304,-1076.0,0.00010999,2]
[335026030,1723761041313,-1257.0,0.00010999,2]
[335026031,1723761041322,-5843.0,0.00010999,2]
[335026032,1723761041331,-1543.0,0.00010999,2]
[335026033,1723761041341,-1924.0,0.00010999,2]
[335026034,1723761041350,-1030.15064302,0.00010999,3]
[335026035,1723761041359,-1030.15064302,0.00010999,3]
[335026036,1723761041368,-150.0,0.00010999,2]
[335026037,1723761041377,-150.0,0.00010999,7]
[335026038,1723761041386,-150.0,0.00010999,7]
[335026039,1723761041395,-150.0,0.00010999,7]
[335026040,1723761041405,-150.0,0.00010999,7]
[335026041,1723761041414,-150.0,0.00010999,7]
[335026042,1723761041423,-150.0,0.00010999,7]
[335026043,1723761041432,-150.0,0.00010999,7]
[335026044,1723761041443,-150.0,0.00010999,7]
[335026045,1723761041452,-161.45810756,0.00010999,7]
[335026046,1723761041462,-697.0,0.00010999,2]
[335026047,1723761041476,-212.55946011,0.00011,2]
[335026048,1723761041485,-344322.86597337,0.00011,2]
[335026049,1723761041506,-8144.42314774,0.00011,2]
[335026050,1723761041517,-281.186742,0.00011,2]
[335026051,1723761041548,-254.25,0.00011,2]
[335026052,1723761041559,-7395.0000005,0.00011,2]
[335026053,1723761041571,-4250.0,0.00011,2]
[335026054,1723761041582,-2607.20000779,0.00011,2]
[335026055,1723761041597,-1600.65,0.00011,2]
[335026056,1723761041608,-690.03922118,0.00011,2]
[335026059,1723761043234,-632.52348141,0.00010902,2]
[335026061,1723761043704,-296.18044634,0.00010902,2]
[335026063,1723761043720,-9022.73171167,0.00010902,2]
[335026066,1723761043737,-11811.56436058,0.00010902,2]
[335026068,1723761043750,-19217.43563946,0.00011,2]
[335026073,1723761045242,-24935.22661887,0.00011,2]
[335026074,1723761045253,-3087.7847,0.00011,2]
[335026075,1723761045264,-1334.91684426,0.00011,2]
[335026076,1723761045276,-737.43888161,0.00011,2]
[335026077,1723761045287,-494.33920324,0.00011,2]
[335026078,1723761045298,-2157.36487328,0.00011,2]
[335026079,1723761045309,-2180.37715403,0.00011,2]
[335026080,1723761045321,-5507.36088862,0.00011,2]
[335026081,1723761045332,-1625.7938459,0.00011,2]
[335026082,1723761046314,-1867.26480771,0.00011,2]
[335026083,1723761046325,-2363.95962,0.00011,2]
[335026084,1723761046336,-2584.4,0.00011,2]
[335026085,1723761046347,-4490.86171,0.00011,2]
[335026086,1723761046362,-3095.56445462,0.00011,2]
[335026087,1723761046384,-1595.07983397,0.00011,2]
[335026088,1723761046395,-856.2321508,0.00011,2]
[335026089,1723761046419,-278.24503265,0.00011,2]
[335026090,1723761046549,-1178.49866595,0.00011,2]
[335026091,1723761046560,-1064.7,0.00011,2]
[335026093,1723761092813,172.92,9.925e-05,2]
[335026094,1723761155521,1307.0,0.00025,60]
[335026095,1723761238430,22762.92,9.913e-05,2]
[335026096,1723761270013,180.04647444,9.943e-05,2]
[335026097,1723761283666,715.67,9.921e-05,2]
[335026098,1723761321365,643.31,8.219e-05,2]
[335026099,1723761334006,211.47,9.918e-05,2]
[335026100,1723761369591,509.58,9.916e-05,2]
[335026101,1723761399463,250.0,9.918e-05,2]
[335026102,1723761409490,496.0,9.915e-05,2]
[335026103,1723761565897,207.38,9.92e-05,2]
[335026104,1723761832829,357.83,9.914e-05,2]
[335026105,1723761857706,640.9,8.219e-05,2]
[335026106,1723761916479,603.2,9.916e-05,2]
[335026107,1723761988513,3000.0,0.00025,60]
[335026155,1723762146524,164.92,9.889e-05,2]
[335026189,1723762183961,-534.59562614,0.0001,2]
[335026198,1723762232499,-15.40437386,0.0001,2]
[335026199,1723762232510,-249.34322754,0.00010009,2]
[335026200,1723762232521,-288.9412534,0.00010009,2]
[335026201,1723762232531,-678.16246561,0.00010471,2]
[335026202,1723762232545,-311.84172578,0.00010471,2]
[335026203,1723762232556,-833.36001832,0.00010471,2]
[335026204,1723762232569,-696.93784984,0.00010471,2]
[335026205,1723762232583,-2480.12615262,0.00010471,2]
[335026206,1723762232594,-1145.6627305,0.00010471,2]
[335026207,1723762232607,-551.29288503,0.00010471,2]
[335026208,1723762232621,-43.63717383,0.00010471,2]
[335026209,1723762232630,-640.9,0.00010471,2]
[335026210,1723762232640,-57.46282617,0.00010566,2]
[335026211,1723762232652,-2323.0117673,0.00010566,2]
[335026212,1723762232665,-170.3146921,0.00010566,2]
[335026213,1723762232674,-153.4303079,0.00010566,2]
[335026214,1723762232690,-26.61616654,0.00010566,2]
[335026215,1723762232700,-360.40672367,0.00010699,2]
[335026216,1723762232712,-315.29707946,0.00010699,2]
[335026217,1723762232723,-399.07934324,0.00010699,2]
[335026218,1723762232734,-369.7438391,0.00010699,2]
[335026219,1723762232746,-2663.4265084,0.00010699,2]
[335026220,1723762232758,-776.64643615,0.000107,2]
[335026221,1723762232798,-624.43044788,0.000107,2]
[335026222,1723762232810,-415.09721781,0.000107,2]
[335026223,1723762232823,-308.807424,0.000107,2]
[335026224,1723762232834,-582.92504737,0.000107,2]
[335026225,1723762232847,-7292.64059954,0.000107,2]
[335026226,1723762232857,-3033.1703475,0.00010713,2]
[335026227,1723762232868,-150.0,0.00010735,2]
[335026228,1723762232878,-150.0,0.00010743,2]
[335026229,1723762232890,-150.0,0.00010746,2]
[335026230,1723762232901,-501.27,0.00010746,2]
[335026231,1723762232910,-150.0,0.0001075,2]
[335026232,1723762232920,-150.0,0.00010751,2]
[335026233,1723762232929,-150.0,0.00010763,2]
[335026234,1723762232939,-150.0,0.00010764,2]
[335026235,1723762232950,-20273.02,0.00010764,2]
[335026236,1723762232959,-1073.81610346,0.0001078,2]
[335026237,1723762232969,-1110.9710769,0.0001078,2]
[335026238,1723762232978,-150.99,0.0001078,2]
[335026239,1723762232988,-499.99,0.0001078,2]
[335026240,1723762232998,-150.0,0.00010782,2]
[335026241,1723762233007,-272.61388974,0.00010794,2]
[335026242,1723762233017,-150.0,0.00010795,2]
[335026243,1723762233026,-394.9792,0.000108,2]
[335026244,1723762233036,-150.0,0.00010824,2]
[335026245,1723762233045,-150.0,0.00010824,2]
[335026246,1723762233055,-150.0,0.00010831,2]
[335026247,1723762233064,-150.0,0.00010845,2]
[335026248,1723762233074,-150.0,0.00010853,2]
[335026249,1723762233089,-150.0,0.00010858,2]
[335026250,1723762233099,-440.08291615,0.00010862,2]
[335026251,1723762233109,-150.0,0.00010886,2]
[335026252,1723762233119,-203.44849149,0.0001089,2]
[335026253,1723762233128,-273.89227,0.0001089,2]
[335026254,1723762233138,-155.0,0.0001089,2]
[335026255,1723762233147,-150.0,0.00010896,2]
[335026256,1723762233157,-191.67840325,0.00010898,2]
[335026257,1723762233169,-269.0000005,0.00010898,2]
[335026258,1723762233180,-719.56763967,0.00010898,2]
[335026259,1723762233192,-363.45305658,0.00010898,2]
[335026260,1723762233201,-8494.27400479,0.00010898,2]
[335026263,1723762238740,-7266.08921481,0.00010898,2]
[335026264,1723762238754,-345.0,0.00010898,2]
[335026265,1723762238766,-6045.54035109,0.00010898,2]
[335026266,1723762238778,-1433.91078519,0.00010898,2]
[335026267,1723762238789,-1479.70572838,0.00010898,2]
[335026268,1723762238808,-1491.93421574,0.00010898,2]
[335026269,1723762238818,-1278.72,0.00010899,2]
[335026270,1723762238828,-1293.96377084,0.00010899,2]
[335026271,1723762238839,-155.0,0.00010899,2]
[335026272,1723762238848,-155.0,0.00010899,2]
[335026273,1723762238858,-1293.96377079,0.00010899,2]
[335026274,1723762238871,-1293.96377079,0.00010899,2]
[335026275,1723762238881,-1293.96377079,0.00010899,2]
[335026276,1723762238892,-1293.96377079,0.00010899,2]
[335026277,1723762238902,-1293.96377079,0.000109,2]
[335026278,1723762238911,-1293.96377079,0.000109,2]
[335026279,1723762238921,-234.3002,0.000109,2]
[335026280,1723762238931,-7500.0,0.000109,2]
[335026281,1723762238941,-1293.96377079,0.000109,2]
[335026283,1723762238950,-499.99,0.000109,2]
[335026284,1723762238960,-1293.96377079,0.000109,2]
[335026285,1723762238970,-19195.2882,0.000109,2]
[335026286,1723762238980,-500.0,0.000109,2]
[335026287,1723762238991,-15011.4419,0.000109,2]
[335026288,1723762239001,-355.03527412,0.000109,2]
[335026289,1723762239010,-585.4773,0.000109,2]
[335026290,1723762239019,-3000.0,0.000109,2]
[335026291,1723762239029,-5723.545,0.000109,2]
[335026292,1723762239038,-1293.96377079,0.000109,2]
[335026293,1723762239048,-1409.0,0.000109,2]
[335026294,1723762239057,-8743.12725047,0.000109,2]
[335026295,1723762239067,-150.0,0.00010902,2]
[335026296,1723762239076,-150.0,0.00010908,2]
[335026297,1723762239086,-1500.0,0.00010929,2]
[335026298,1723762239096,-150.0,0.0001094,2]
[335026299,1723762239105,-150.0,0.00010944,2]
[335026300,1723762239114,-150.0,0.00010947,2]
[335026301,1723762239124,-250.0,0.00010959,2]
[335026302,1723762239133,-1011.44,0.00010959,2]
[335026303,1723762239143,-169.2,0.00010959,2]
[335026304,1723762239152,-150.0,0.00010969,2]
[335026305,1723762239162,-150.0,0.00010972,2]
[335026306,1723762239171,-4242.91652478,0.00010976,2]
[335026307,1723762239180,-159.13488395,0.00010976,2]
[335026308,1723762239190,-155.0,0.00010979,2]
[335026309,1723762239199,-150.0,0.00010992,2]
[335026310,1723762239208,-3535.2855658,0.00010998,2]
[335026311,1723762239217,-1154.4309687,0.00010998,2]
[335026312,1723762239227,-213.96133354,0.00010999,2]
[335026313,1723762239236,-259.36026898,0.00010999,2]
[335026314,1723762239245,-1924.0,0.00010999,2]
[335026315,1723762239258,-622.0,0.00010999,2]
[335026316,1723762239268,-1543.0,0.00010999,2]
[335026317,1723762239277,-1257.0,0.00010999,2]
[335026318,1723762239286,-150.0,0.00010999,2]
[335026319,1723762239296,-556.0,0.00010999,2]
[335026320,1723762239305,-446.0,0.00010999,2]
[335026321,1723762239314,-1137.0,0.00010999,2]
[335026322,1723762239323,-811.0,0.00010999,2]
[335026323,1723762239334,-1895.0,0.00010999,2]
[335026324,1723762239343,-150.0,0.00010999,2]
[335026325,1723762239353,-551.0,0.00010999,2]
[335026326,1723762239362,-1175.0,0.00010999,2]
[335026327,1723762239372,-247.0,0.00010999,2]
[335026328,1723762239381,-3292.0,0.00010999,2]
[335026329,1723762239390,-764.0,0.00010999,2]
[335026330,1723762239399,-1673.0,0.00010999,2]
[335026331,1723762239408,-5843.0,0.00010999,2]
[335026332,1723762239418,-5135.0,0.00010999,2]
[335026333,1723762239427,-21763.0,0.00010999,2]
[335026334,1723762239436,-289.0,0.00010999,2]
[335026335,1723762239445,-1205.0,0.00010999,2]
[335026336,1723762239454,-521.0,0.00011,2]
[335026337,1723762239463,-338422.15679047,0.00011,2]
[335026338,1723762239472,-759482.06041523,0.00011,2]
[335026339,1723762239500,-1756.33192736,0.00011,2]
[335026340,1723762239511,-4608.6,0.00011,2]
[335026341,1723762239522,-651.2,0.00011,2]
[335026342,1723762239533,-1908.71029907,0.00011,2]
[335026343,1723762239544,-22140.40455578,0.00011,2]
[335026349,1723762240436,-575.92222184,0.00011,2]
[335026350,1723762240496,-1387.96978456,0.00011,2]
[335026351,1723762240539,-260.0870618,0.00011,2]
[335026352,1723762240550,-327.902261,0.00011,2]
[335026353,1723762240579,-6576832.02166706,0.00011,2]
[335026354,1723762240622,-316.06940488,0.00011,2]
[335026355,1723762240632,-1617.3920438,0.00011,2]
[335026362,1723762243379,-500.0,0.00010899,2]
[335026363,1723762243388,-108.522095,0.00011,2]
[335026364,1723762243625,-289.34499,0.00011,2]
[335026365,1723762243638,-407.97,0.00011,2]
[335026401,1723762245238,-1149.44775671,0.00011,2]
[335026409,1723762317402,633.35,8.23e-05,2]
[335026410,1723762375652,14346.73058769,8.23e-05,2]
[335026411,1723762377446,693.09243413,8.23e-05,2]
[335026412,1723762379384,170.18,9.889e-05,2]
[335026413,1723762399765,291.36870266,8.23e-05,2]
[335026414,1723762416551,-168.76066551,0.00022575,30]
[335026415,1723762416578,-1931.23933449,0.00023,30]
[335026416,1723762586982,1211.93355993,9.954e-05,2]
[335026418,1723762617565,1000.0,9.97e-05,2]
[335026419,1723762652645,6041.74960874,9.954e-05,2]
[335026420,1723762709720,6807.1,9.971e-05,2]
[335026421,1723762894587,629.06,8.219e-05,2]
[335026422,1723762912772,455.07,9.959e-05,2]
[335026426,1723763050418,172.92,9.931e-05,2]
[335026429,1723763189101,200.0,9.903e-05,2]
[335026452,1723763357613,623.62,8.219e-05,2]
[335026453,1723763360334,227.53,9.95e-05,2]
[335026460,1723763402589,297.48958849,9.962e-05,2]
[335026463,1723763431729,-155.0,9.988e-05,2]
[335026464,1723763431739,-140.4294,9.992e-05,2]
[335026465,1723763431751,-24.5306,9.992e-05,2]
[335026466,1723763431760,-290.05974808,9.992e-05,2]
[335026467,1723763431769,-550.0,0.0001,2]
[335026468,1723763431779,-748.35140455,0.00010009,2]
[335026469,1723763431787,-230.08927246,0.00010026,2]
[335026470,1723763431797,-4411.75417491,0.00010054,2]
[335026471,1723763431812,-1569.21582509,0.00010054,2]
[335026472,1723763431823,-155.0,0.00010097,2]
[335026474,1723763431832,-193.75,0.0001041,2]
[335026476,1723763431841,-623.62,0.00010473,2]
[335026477,1723763431851,-3033.1703475,0.00010699,2]
[335026478,1723763431860,-150.99,0.00010699,2]
[335026479,1723763431870,-300.0,0.00010712,2]
[335026480,1723763431879,-1175.0,0.00010721,2]
[335026481,1723763431888,-3292.0,0.00010721,2]
[335026482,1723763431897,-247.0,0.00010721,2]
[335026483,1723763431907,-948.265,0.000108,2]
[335026484,1723763431916,-5899.58614832,0.000108,2]
[335026485,1723763431926,-1855.79515426,0.000108,2]
[335026486,1723763431935,-155.13955596,0.00010861,2]
[335026487,1723763431944,-150.0,0.00010861,2]
[335026488,1723763431954,-155.0,0.00010862,2]
[335026489,1723763431963,-3000.0,0.0001089,2]
[335026490,1723763431973,-764.0,0.00010895,2]
[335026491,1723763431983,-289.0,0.00010895,2]
[335026492,1723763431993,-1673.0,0.00010895,2]
[335026493,1723763432002,-21763.0,0.00010895,2]
[335026494,1723763432011,-5135.0,0.00010895,2]
[335026495,1723763432021,-1205.0,0.00010895,2]
[335026496,1723763432030,-2527.00140427,0.00010895,2]
[335026501,1723763437880,-320.85635304,0.00010895,2]
[335026502,1723763437948,-2995.14224269,0.00010895,2]
[335026503,1723763437958,-1076.0,0.00010895,2]
[335026504,1723763437969,-1636.3138,0.00010898,2]
[335026505,1723763437980,-579.8764,0.00010899,2]
[335026506,1723763437991,-1323.72796963,0.000109,2]
[335026507,1723763438003,-2912.01693037,0.000109,2]
[335026508,1723763438012,-2500.0,0.000109,2]
[335026509,1723763438021,-330.98465631,0.000109,2]
[335026510,1723763438031,-557.1434,0.000109,2]
[335026511,1723763438040,-192.46545999,0.000109,2]
[335026512,1723763438049,-152.35222135,0.000109,2]
[335026513,1723763438059,-7500.0,0.000109,2]
[335026514,1723763438068,-1005.0,0.000109,2]
[335026515,1723763438077,-300.73684348,0.000109,2]
[335026516,1723763438087,-150.0,0.00010959,2]
[335026517,1723763438096,-195.71,0.00010959,2]
[335026518,1723763438105,-163.09,0.00010959,2]
[335026519,1723763438114,-815.48,0.00010959,2]
[335026520,1723763438123,-763.34,0.00010959,2]
[335026521,1723763438134,-250.0,0.00010959,2]
[335026522,1723763438367,-167.25085884,0.00010997,2]
[335026523,1723763438377,-150.0,0.00010999,2]
[335026524,1723763438386,-622.0,0.00010999,2]
[335026525,1723763438395,-1543.0,0.00010999,2]
[335026526,1723763438404,-1257.0,0.00010999,2]
[335026527,1723763438414,-1924.0,0.00010999,2]
[335026528,1723763438423,-556.0,0.00010999,2]
[335026529,1723763438432,-1137.0,0.00010999,2]
[335026530,1723763438442,-811.0,0.00010999,2]
[335026531,1723763438451,-446.0,0.00010999,2]
[335026532,1723763438460,-150.0,0.00010999,2]
[335026533,1723763438469,-150.0,0.00010999,2]
[335026534,1723763438479,-551.0,0.00010999,2]
[335026535,1723763438489,-1895.0,0.00010999,2]
[335026537,1723763438498,-295.44184782,0.00010999,2]
[335026539,1723763438507,-720.68745058,0.00010999,2]
[335026541,1723763438516,-1279.56552153,0.00010999,3]
[335026542,1723763438525,-499.99,0.00010999,2]
[335026544,1723763438535,-21657.61728094,0.00011,2]
[335026549,1723763438570,-1106.44534,0.00011,2]
[335026563,1723763438701,-1954.87549614,0.00011,2]
[335026570,1723763442654,-1619.75808668,0.000109,2]
[335026571,1723763442668,-2320.16630925,0.00011,2]
[335026582,1723763443886,-935.898057,0.00011,2]
[335026583,1723763443897,-833.87987711,0.00011,2]
[335026584,1723763443909,-420.02001503,0.00011,2]
[335026585,1723763443920,-1464.06406546,0.00011,2]
[335026586,1723763443933,-448.95942964,0.00011,2]
[335026587,1723763443945,-694.5375725,0.00011,2]
[335026588,1723763443957,-12295.49214234,0.00011,2]
[335026589,1723763443969,-1364.2199562,0.00011,2]
[335026590,1723763445510,-1723.80973372,0.00011,2]
[335026593,1723763446032,-152951.27105721,0.00011,2]
[335026594,1723763446041,-209849.95414353,0.00011,2]
[335026595,1723763446103,-50000.76269266,0.00011,2]
[335026596,1723763446114,-13109.52489308,0.00011,2]
[335026603,1723763833512,612.43,8.49e-05,2]
[335026607,1723764318943,605.71,8.219e-05,2]
[335026613,1723764373159,250.0,9.967e-05,2]
[335026614,1723764394643,1000.0,9.977e-05,2]
[335026615,1723764479459,350.47,9.947e-05,2]
[335026616,1723764525200,225.58411866,9e-05,2]
[335026636,1723764562391,755.0,9.943e-05,2]
[335026638,1723764633234,-3033.1703475,0.00010009,2]
[335026639,1723764633245,-164.92,0.00010054,2]
[335026640,1723764633254,-605.71,0.00010474,2]
[335026641,1723764633264,-962.69814273,0.00010505,2]
[335026642,1723764633274,-155.0,0.00010566,2]
[335026643,1723764633283,-155.0,0.00010566,2]
[335026644,1723764633293,-170.17,0.00010566,2]
[335026645,1723764633302,-1005.58078473,0.0001078,2]
[335026646,1723764633311,-1047.21162887,0.0001078,2]
[335026647,1723764633320,-300.0,0.00010799,2]
[335026648,1723764633329,-654.93317181,0.00010799,2]
[335026649,1723764633339,-8280.0693538,0.000108,2]
[335026650,1723764633348,-287.26,0.00010861,2]
[335026651,1723764633358,-499.99,0.00010885,2]
[335026652,1723764633367,-2728.24356,0.0001089,2]
[335026653,1723764633377,-155.0,0.00010899,2]
[335026654,1723764633386,-1347.4624,0.000109,2]
[335026655,1723764633396,-289.61157428,0.000109,2]
[335026656,1723764633406,-174.83539434,0.000109,2]
[335026657,1723764633415,-250.0,0.00010959,2]
[335026658,1723764633424,-233.48,0.00010972,2]
[335026659,1723764633433,-4719.10243134,0.0001098,2]
[335026660,1723764633443,-150.0,0.00010989,2]
[335026661,1723764633452,-616990.5512109,0.0001099,2]
[335026664,1723764638102,-10231.82958382,0.0001099,2]
[335026665,1723764638119,-435.35854429,0.0001099,2]
[335026666,1723764638131,-664.7658,0.0001099,2]
[335026667,1723764638180,-1507.57772365,0.0001099,2]
[335026668,1723764638193,-522.95955266,0.0001099,2]
[335026669,1723764638206,-61199.45422728,0.0001099,2]
[335026670,1723764638218,-686.4340974,0.0001099,2]
[335026671,1723764638328,-155.0,0.00010505,2]
[335026672,1723764638337,-31226.03398779,0.0001099,2]
[335026673,1723764638349,-20046.88647575,0.0001099,2]
[335026674,1723764638380,-703.20536157,0.0001099,2]
[335026675,1723764638391,-132282.29854859,0.0001099,2]
[335026676,1723764638400,-19127.58903929,0.0001099,3]
[335026677,1723764638410,-6904.91570373,0.00010997,2]
[335026678,1723764638420,-556.0,0.00010999,2]
[335026679,1723764638429,-1137.0,0.00010999,2]
[335026680,1723764638438,-446.0,0.00010999,2]
[335026681,1723764638447,-150.0,0.00010999,2]
[335026682,1723764638457,-811.0,0.00010999,2]
[335026683,1723764638466,-1895.0,0.00010999,2]
[335026684,1723764638476,-551.0,0.00010999,2]
[335026685,1723764638486,-943.441,0.00010999,2]
[335026686,1723764638495,-3292.0,0.00010999,2]
[335026687,1723764638504,-247.0,0.00010999,2]
[335026688,1723764638513,-764.0,0.00010999,2]
[335026689,1723764638522,-1076.0,0.00010999,2]
[335026690,1723764638531,-5843.0,0.00010999,2]
[335026691,1723764638540,-1205.0,0.00010999,2]
[335026692,1723764638549,-171.315,0.00010999,2]
[335026693,1723764638558,-1543.0,0.00010999,2]
[335026694,1723764638567,-5135.0,0.00010999,2]
[335026695,1723764638576,-622.0,0.00010999,2]
[335026696,1723764638586,-1924.0,0.00010999,2]
[335026697,1723764638595,-1100.59222612,0.00010999,2]
[335026698,1723764638604,-597.0,0.00010999,2]
[335026699,1723764638614,-124063.44765115,0.00011,2]
[335026700,1723764638623,-3000.0,0.00011,3]
[335026701,1723764638632,-473904.38096844,0.00011,2]
[335026702,1723764638642,-1780036.31367236,0.00011,2]
[335026703,1723764638657,-453.0,0.00011,2]
[335026706,1723764640225,-23111.92456953,0.00011,2]
[335026707,1723764640237,-288.933,0.00011,2]
[335026708,1723764640248,-31971.56757775,0.00011,2]
[335026709,1723764640259,-3470.13415581,0.00011,2]
[335026718,1723764642993,-1673.0,0.00010999,2]
[335026719,1723764643003,-8361.08847094,0.00011,2]
[335026730,1723764645465,-1321.69127506,0.00011,2]
[335026731,1723764646254,-1257.0,0.00010999,2]
[335026732,1723764646263,-7583.8761939,0.00011,2]
[335026739,1723764788482,593.99,8.219e-05,2]
[335026740,1723764868937,4123.77919218,8.219e-05,2]
[335026744,1723764928719,199.27134754,9.962e-05,2]
[335026747,1723765205853,1462.11,9.832e-05,2]
[335026756,1723765236092,7840.50751979,9.962e-05,2]
[335026757,1723765250045,37977.53,9.909e-05,2]
[335026758,1723765292064,230.51,9.821e-05,2]
[335026759,1723765325716,23900.0,9.773e-05,2]